bitfinex/quotes_ETHUSD_20250616
["timestamp","ask_amount","ask_price","bid_price","bid_amount"]
[1750034955755,0.196,2546.6,2546.4,4.88848839]
[1750034957055,30.0,2547.0,2546.5,0.7885]
[1750034957217,0.196,2546.8,2546.4,4.88848839]
[1750034957420,0.55,2547.0,2546.2,4.88848839]
[1750034957626,10.39324406,2547.2,2546.0,4.88848839]
[1750034957627,0.6632,2546.4,2546.0,4.88848839]
[1750034957855,0.196,2546.3,2546.0,4.88848839]
[1750034958054,0.196,2546.3,2545.8,12.34398839]
[1750034958361,0.196,2546.3,2545.8,14.58238723]
[1750034958560,0.196,2546.3,2546.0,4.88848839]
[1750034958759,30.55,2546.2,2545.8,2.23439884]
[1750034958962,1.2132,2546.0,2545.3,4.88848839]
[1750034959263,30.0,2545.9,2545.3,4.88848839]
[1750034959418,0.6632,2546.0,2545.5,4.88848839]
[1750034961495,0.6632,2546.0,2545.9,4.88848839]
[1750034962079,30.0,2545.9,2545.3,4.88848839]
[1750034965688,30.0,2545.9,2545.5,4.88848839]
[1750034967086,0.6632,2546.0,2545.7,4.88848839]
[1750034967327,2.3532,2546.2,2545.9,4.88848839]
[1750034967487,0.6632,2546.4,2546.1,4.88848839]
[1750034967783,2.08021608,2546.7,2545.7,0.48884884]
[1750034967784,2.3532,2546.7,2546.3,4.88848839]
[1750034967990,30.0,2546.8,2546.5,4.88848839]
[1750034968569,30.0,2546.8,2546.2,0.8182]
[1750034968774,0.196,2546.5,2546.4,10.0]
[1750034969568,0.196,2546.5,2546.2,10.0]
[1750034969773,0.36499124,2546.4,2546.2,10.0]
[1750034969990,0.196,2546.4,2546.2,10.0]
[1750034970197,0.8592,2546.4,2546.0,10.0]
[1750034970363,0.196,2546.2,2546.0,10.0]
[1750034970791,30.83215143,2546.1,2545.3,5.68268839]
[1750034970995,0.196,2545.9,2545.3,6.89895723]
[1750034971201,0.196,2545.7,2545.6,10.0]
[1750034971412,0.196,2545.7,2545.5,4.88848839]
[1750034971567,7.1462,2546.1,2545.6,10.0]
[1750034971766,1.2132,2546.3,2546.0,4.88848839]
[1750034972069,11.2132,2546.3,2546.0,4.88848839]
[1750034972467,1.2132,2546.3,2546.0,4.88848839]
[1750034972965,0.196,2546.0,2545.6,0.8108]
[1750034973195,0.196,2545.9,2545.6,0.8108]
[1750034976606,0.196,2545.9,2545.6,11.71463543]
[1750034978812,0.196,2546.1,2545.7,0.196]
[1750034979672,0.196,2546.1,2545.8,0.03927607]
[1750034979874,0.196,2546.1,2545.8,7.38093463]
[1750034982468,0.196,2546.1,2545.8,7.34165856]
[1750034982702,0.196,2546.1,2545.9,0.75376586]
[1750034985312,0.196,2546.1,2545.8,7.34165856]
[1750034987494,0.6632,2546.0,2545.8,10.0]
[1750034987803,0.196,2545.9,2545.8,10.0]
[1750034988193,0.196,2545.9,2545.6,10.0]
[1750034991009,0.196,2545.9,2545.6,17.34165856]
[1750034991211,0.196,2545.9,2545.6,19.82359442]
[1750034992531,0.196,2545.9,2545.6,6.467]
[1750034992931,0.196,2545.9,2545.6,11.36178084]
[1750034993236,0.1688123,2545.8,2545.6,11.36178084]
[1750034993538,0.196,2545.9,2545.6,11.36178084]
[1750034994028,0.196,2545.9,2545.6,4.89478084]
[1750034994418,0.1688119,2545.8,2545.6,4.89478084]
[1750034994623,0.196,2545.9,2545.6,4.89478084]
[1750034994836,0.16881094,2545.8,2545.6,4.89478084]
[1750034995026,0.16881016,2545.7,2545.6,4.89478084]
[1750034995337,0.196,2545.7,2545.6,4.89478084]
[1750034995707,0.36480344,2545.7,2545.6,4.89478084]
[1750034995920,0.36480619,2545.7,2545.6,4.89478084]
[1750034996120,0.196,2545.7,2545.6,4.89478084]
[1750034997301,0.36480893,2545.7,2545.6,4.89478084]
[1750034997911,0.53361526,2545.7,2545.6,4.89478084]
[1750034998116,0.53361262,2545.7,2545.6,4.89478084]
[1750034998404,0.53361259,2545.7,2545.6,4.89478084]
[1750034998600,0.36480893,2545.7,2545.6,4.89478084]
[1750034999441,0.53361335,2545.7,2545.6,4.89478084]
[1750034999608,0.53360423,2545.7,2545.6,4.89478084]
[1750034999807,0.36480893,2545.7,2545.6,4.89478084]
[1750035000146,0.6632,2545.6,2545.4,6.466]
[1750035000477,0.6632,2545.6,2544.9,10.0]
[1750035000478,30.6632,2545.4,2544.7,0.7655]
[1750035000607,30.6632,2545.4,2544.6,11.55678084]
[1750035000608,0.6632,2545.4,2544.6,11.55678084]
[1750035000802,0.196,2545.1,2544.6,4.89478084]
[1750035001009,0.6632,2545.0,2544.3,6.6878257]
[1750035001209,0.196,2544.7,2544.3,6.6878257]
[1750035001552,0.196,2544.7,2544.4,11.36578084]
[1750035001769,0.6632,2545.0,2544.6,4.89478084]
[1750035001915,30.0,2545.1,2544.9,4.89478084]
[1750035002435,0.6632,2545.5,2544.9,4.89478084]
[1750035002809,0.6632,2545.5,2544.8,6.477]
[1750035003134,0.6632,2545.5,2544.8,6.51629093]
[1750035003334,0.6632,2545.5,2544.9,1.38626073]
[1750035003537,0.6632,2545.5,2544.7,7.34631632]
[1750035003740,0.6632,2545.5,2544.8,6.476]
[1750035003908,0.6632,2545.5,2544.8,6.51529093]
[1750035004116,10.0,2545.6,2544.8,6.51529093]
[1750035004117,0.83200893,2545.7,2545.0,7.34631632]
[1750035004305,0.83200893,2545.7,2545.1,6.476]
[1750035004512,30.0,2545.6,2545.1,6.476]
[1750035005045,30.0,2545.6,2545.1,6.426]
[1750035006451,30.0,2545.6,2544.8,16.476]
[1750035006669,30.0,2545.6,2544.8,16.475]
[1750035007837,0.83200893,2545.7,2545.0,7.34631632]
[1750035008040,0.83200893,2545.7,2545.1,0.03928643]
[1750035008437,0.83200893,2545.7,2545.2,0.7729]
[1750035010158,0.83200893,2545.7,2545.2,7.2519]
[1750035011823,1.02800893,2545.7,2545.2,6.671]
[1750035014359,0.36480893,2545.7,2545.2,6.671]
[1750035014537,0.36480893,2545.7,2545.2,9.14928163]
[1750035015136,0.36480893,2545.7,2545.3,18.15361632]
[1750035016454,0.36480893,2545.7,2545.4,0.03928203]
[1750035017463,0.16880893,2545.7,2545.6,0.196]
[1750035018030,0.16880893,2545.7,2545.4,6.467]
[1750035018230,0.16880893,2545.7,2545.4,6.663]
[1750035018735,0.16880893,2545.7,2545.5,0.03928005]
[1750035020132,0.16880893,2545.7,2545.4,6.663]
[1750035020450,0.16880893,2545.7,2545.5,0.03928006]
[1750035021266,0.16880893,2545.7,2545.4,9.3924898]
[1750035023684,0.16880893,2545.7,2545.5,0.03928004]
[1750035024186,0.16880893,2545.7,2545.4,9.3924898]
[1750035024778,30.6632,2545.6,2544.7,4.72]
[1750035024946,30.6632,2545.6,2544.8,7.2896]
[1750035024947,30.0,2545.5,2544.8,7.2896]
[1750035025299,30.0,2545.5,2544.9,4.89824066]
[1750035027361,0.16880893,2545.7,2545.3,4.89824066]
[1750035027883,0.16880893,2545.7,2545.5,4.89824066]
[1750035028283,0.16880893,2545.7,2545.6,0.03928064]
[1750035029472,0.16880893,2545.7,2545.3,15.72184066]
[1750035030856,0.16880893,2545.7,2545.4,6.467]
[1750035033466,0.16880893,2545.7,2545.5,4.93752351]
[1750035033653,0.16880893,2545.7,2545.5,4.89824066]
[1750035033991,0.16880893,2545.7,2545.5,4.93751937]
[1750035034166,0.16880893,2545.7,2545.5,4.89824066]
[1750035034767,0.16880893,2545.7,2545.5,5.09424066]
[1750035034967,0.16880893,2545.7,2545.5,7.55461313]
[1750035036058,0.16880893,2545.7,2545.5,14.02061313]
[1750035036270,0.16880893,2545.7,2545.5,11.56024066]
[1750035037204,0.16880893,2545.7,2545.6,0.03927871]
[1750035037579,0.16880893,2545.7,2545.6,10.79727871]
[1750035037912,0.16880893,2545.7,2545.6,10.954]
[1750035038485,0.16880893,2545.7,2545.6,14.88234695]
[1750035038818,0.16880893,2545.7,2545.6,13.97151938]
[1750035039997,0.16880893,2545.7,2545.6,19.67951938]
[1750035040196,0.16880893,2545.7,2545.6,13.21351938]
[1750035040407,0.16880893,2545.7,2545.6,19.67951938]
[1750035040573,0.16880893,2545.7,2545.6,16.662]
[1750035040912,0.16880893,2545.7,2545.6,16.466]
[1750035041679,0.16880893,2545.7,2545.6,6.466]
[1750035043183,0.16880893,2545.7,2545.6,16.50527834]
[1750035043372,0.16880893,2545.7,2545.6,17.4461]
[1750035043574,0.16880893,2545.7,2545.6,10.196]
[1750035043778,0.16880893,2545.7,2545.6,6.662]
[1750035044388,0.16880893,2545.7,2545.6,6.466]
[1750035044714,0.16880893,2545.7,2545.3,0.196]
[1750035044911,0.16880893,2545.7,2545.4,6.466]
[1750035046827,0.16880893,2545.7,2545.4,13.84712287]
[1750035047010,0.16880893,2545.7,2545.5,11.58071229]
[1750035047313,0.16880893,2545.7,2545.6,0.03927927]
[1750035047620,0.16880893,2545.7,2545.6,0.196]
[1750035047918,0.16880893,2545.7,2545.6,6.662]
[1750035048122,0.16880893,2545.7,2545.6,6.70127691]
[1750035048418,0.16880893,2545.7,2545.6,19.32325997]
[1750035048583,0.16880893,2545.7,2545.6,19.28398306]
[1750035049986,0.16880893,2545.7,2545.6,16.662]
[1750035053821,0.16880893,2545.7,2545.6,10.196]
[1750035054034,0.16880893,2545.7,2545.6,6.465]
[1750035056331,0.16880893,2545.7,2545.5,10.0]
[1750035059240,0.16880893,2545.7,2545.4,6.465]
[1750035059446,0.196,2545.6,2545.4,6.465]
[1750035060808,0.196,2545.6,2545.1,11.0255]
[1750035061012,30.0,2545.5,2545.1,0.196]
[1750035061256,30.0,2545.5,2544.9,6.661]
[1750035061257,30.196,2545.4,2544.9,6.661]
[1750035061436,30.0,2545.3,2544.9,6.661]
[1750035062036,0.196,2545.4,2544.9,6.661]
[1750035062242,0.196,2545.4,2545.0,0.03928837]
[1750035062428,0.196,2545.4,2545.0,6.50428837]
[1750035062843,0.196,2545.4,2545.0,6.465]
[1750035063215,0.196,2545.4,2545.0,6.50428835]
[1750035063718,0.196,2545.4,2545.0,6.465]
[1750035064240,0.196,2545.4,2545.0,6.50428834]
[1750035064838,0.196,2545.4,2545.0,6.465]
[1750035065736,0.196,2545.4,2545.0,6.50428833]
[1750035066055,0.196,2545.4,2545.0,6.465]
[1750035067558,0.196,2545.4,2545.0,6.5042883]
[1750035067758,0.196,2545.4,2545.1,4.89736097]
[1750035068160,30.0,2545.3,2544.7,0.7855]
[1750035068371,15.4566366,2545.7,2544.6,1.691]
[1750035068372,0.6632,2545.0,2544.6,0.196]
[1750035071262,0.196,2545.1,2544.6,0.196]
[1750035071421,0.196,2545.1,2544.6,0.23529353]
[1750035071621,0.196,2545.1,2544.6,0.196]
[1750035071871,0.196,2545.1,2544.7,0.03929354]
[1750035072223,0.196,2545.1,2544.6,0.196]
[1750035073125,0.6632,2545.0,2544.3,0.2218257]
[1750035073325,0.6632,2545.0,2544.3,0.4178257]
[1750035073326,0.196,2544.7,2544.3,0.4178257]
[1750035073675,0.6632,2545.0,2544.4,0.0392971]
[1750035073872,0.196,2544.9,2544.5,0.196]
[1750035074175,0.196,2544.9,2544.6,0.80449397]
[1750035076676,0.196,2544.9,2544.6,2.55114337]
[1750035076875,0.6632,2545.2,2544.6,9.89957841]
[1750035077090,0.55927563,2545.7,2545.1,3.92902406]
[1750035077091,0.16880893,2545.7,2545.1,3.92902406]
[1750035077374,0.16880893,2545.7,2545.4,7.34843504]
[1750035077577,0.16880893,2545.7,2545.5,0.7702]
[1750035077880,30.6632,2545.6,2544.8,0.7702]
[1750035078181,30.0,2545.3,2544.7,6.466]
[1750035079764,30.0,2545.3,2544.5,0.7702]
[1750035080574,0.6632,2545.4,2544.5,0.7702]
[1750035080773,0.6632,2545.4,2544.6,0.03928999]
[1750035080969,0.6632,2545.4,2544.7,10.0]
[1750035081161,0.6632,2545.4,2544.9,0.7605]
[1750035081572,0.6632,2545.4,2544.8,6.466]
[1750035081773,30.0,2545.3,2544.7,7.2265]
[1750035081960,30.0,2545.3,2544.7,6.466]
[1750035082362,30.0,2545.3,2544.5,0.7605]
[1750035082868,0.55,2545.3,2544.5,0.7605]
[1750035083047,0.6632,2545.1,2544.5,6.466]
[1750035083242,0.6632,2545.1,2544.6,0.03929357]
[1750035083668,0.55,2545.3,2544.6,0.03929357]
[1750035083669,0.6632,2545.3,2544.7,0.7605]
[1750035083853,0.6632,2545.3,2544.8,0.03928995]
[1750035085194,30.0,2545.2,2544.8,0.03928995]
[1750035085679,30.0,2545.2,2544.5,7.2652]
[1750035085842,30.0,2545.2,2544.6,0.03929107]
[1750035086980,0.196,2545.1,2544.7,0.196]
[1750035087168,0.196,2545.1,2544.8,0.03929109]
[1750035091309,1.04347639,2545.4,2544.9,5.88916759]
[1750035091614,0.196,2545.4,2545.0,0.03928707]
[1750035092208,0.196,2545.4,2545.1,4.89796759]
[1750035092395,0.16880893,2545.7,2545.3,4.89796759]
[1750035092571,0.36480893,2545.7,2545.4,0.03928182]
[1750035092914,0.36480893,2545.7,2545.3,5.89496759]
[1750035095111,0.8592,2545.5,2545.0,10.196]
[1750035096690,0.8592,2545.5,2545.1,4.89796759]
[1750035096923,0.196,2545.5,2545.1,4.93725356]
[1750035097112,0.196,2545.5,2545.1,7.09717892]
[1750035097306,0.196,2545.5,2545.1,7.05789295]
[1750035098617,0.196,2545.5,2545.1,7.0971789]
[1750035099225,0.196,2545.5,2545.1,7.05789295]
[1750035105203,0.196,2545.5,2545.1,11.36296759]
[1750035106244,0.196,2545.5,2545.3,4.89796759]
[1750035106543,0.6632,2545.6,2545.0,10.0]
[1750035106710,0.196,2545.5,2545.1,6.465]
[1750035108032,0.196,2545.5,2545.1,6.5358644]
[1750035110122,0.196,2545.5,2545.1,0.0708644]
[1750035110317,0.196,2545.5,2545.1,6.5358644]
[1750035110539,0.196,2545.5,2545.1,0.0708644]
[1750035110943,30.0,2545.4,2545.1,10.0708644]
[1750035111928,30.0,2545.5,2545.1,0.0708644]
[1750035112269,0.6632,2545.2,2545.1,0.0708644]
[1750035123261,0.84736298,2545.5,2545.1,0.0708644]
[1750035123262,1.51056298,2545.5,2545.1,0.0708644]
[1750035123562,0.196,2545.2,2545.1,0.0708644]
[1750035126690,0.8592,2545.2,2545.1,0.0708644]
[1750035128250,0.196,2545.2,2545.1,0.0708644]
[1750035130789,0.196,2545.5,2545.2,0.81]
[1750035131019,0.196,2545.5,2545.3,4.89796759]
[1750035131177,0.196,2545.7,2545.3,5.09396759]
[1750035132203,0.196,2545.7,2545.3,5.16483199]
[1750035132354,0.196,2545.7,2545.4,0.5974832]
[1750035132558,0.196,2545.7,2545.3,0.2668644]
[1750035132767,0.6632,2545.6,2545.3,0.2668644]
[1750035132993,0.196,2545.5,2545.3,0.0708644]
[1750035138982,30.0,2545.4,2545.3,0.0708644]
[1750035139201,30.84812019,2545.4,2545.3,0.0708644]
[1750035139803,31.51132019,2545.4,2545.3,0.0708644]
[1750035141722,1.51132019,2545.4,2545.3,0.0708644]
[1750035141884,10.6632,2545.4,2545.3,0.0708644]
[1750035144234,30.196,2545.5,2545.3,0.0708644]
[1750035144369,0.84812019,2545.4,2545.3,0.0708644]
[1750035144566,0.196,2545.5,2545.3,0.0708644]
[1750035149142,0.196,2545.5,2545.3,4.96883199]
[1750035149282,0.196,2545.7,2545.4,0.54009376]
[1750035149483,0.84812019,2545.9,2545.3,0.0708644]
[1750035149484,30.0,2545.6,2545.3,0.0708644]
[1750035149780,10.196,2545.5,2545.3,0.0708644]
[1750035150000,30.0,2545.4,2545.3,0.0708644]
[1750035150576,0.84841176,2545.4,2545.3,0.0708644]
[1750035150780,30.0,2545.5,2545.3,0.0708644]
[1750035150977,0.84841176,2545.4,2545.3,0.0708644]
[1750035151225,30.0,2545.5,2545.3,0.0708644]
[1750035151513,0.84841176,2545.4,2545.3,0.0708644]
[1750035151681,0.55,2546.1,2545.3,0.8319644]
[1750035151682,0.196,2545.6,2545.3,0.8319644]
[1750035163032,0.196,2545.6,2545.3,0.87124832]
[1750035163205,0.196,2545.6,2545.3,1.46776991]
[1750035164633,0.196,2545.6,2545.3,1.42848599]
[1750035166102,0.196,2545.6,2545.3,0.8319644]
[1750035170140,0.196,2545.6,2545.3,0.0708644]
[1750035171754,0.196,2545.6,2545.4,0.8244]
[1750035172065,0.196,2545.6,2545.4,0.86368222]
[1750035172631,0.196,2545.6,2545.4,0.93454662]
[1750035172855,0.196,2545.6,2545.4,1.51779804]
[1750035175938,0.196,2545.6,2545.4,6.41576563]
[1750035177753,1.51161437,2546.1,2545.4,6.41576563]
[1750035178078,0.196,2545.8,2545.4,6.61176563]
[1750035178862,0.196,2545.8,2545.4,6.57248341]
[1750035179186,0.196,2545.8,2545.5,0.65724834]
[1750035179384,0.196,2545.8,2545.6,4.89796759]
[1750035179559,0.196,2546.1,2545.7,0.806]
[1750035180669,0.196,2546.1,2545.7,0.8768644]
[1750035182791,0.196,2546.1,2545.8,0.03927623]
[1750035182998,0.196,2546.1,2545.8,0.64028705]
[1750035183759,0.196,2546.1,2545.8,0.71115145]
[1750035184173,0.84841437,2546.4,2546.0,5.67436759]
[1750035184399,0.196,2546.4,2546.0,5.67436759]
[1750035184597,0.196,2546.4,2546.0,1.47382398]
[1750035184784,0.196,2546.4,2546.0,1.5054163]
[1750035185355,0.196,2546.4,2546.0,1.54468843]
[1750035185559,0.196,2546.4,2546.0,1.5054163]
[1750035188409,0.196,2546.4,2546.0,1.54468842]
[1750035188608,0.196,2546.4,2546.0,1.5054163]
[1750035188905,0.196,2546.4,2546.0,1.54468843]
[1750035190512,0.196,2546.4,2546.0,1.5054163]
[1750035190714,0.196,2546.4,2546.0,0.8472644]
[1750035190873,0.196,2546.4,2546.0,5.78450417]
[1750035191569,30.0,2546.8,2546.2,4.89796759]
[1750035191775,1.04441437,2546.7,2546.3,0.7755]
[1750035191974,0.196,2546.7,2546.3,0.7755]
[1750035192194,0.196,2546.7,2546.4,0.58694676]
[1750035192411,0.196,2546.7,2546.4,5.52418142]
[1750035192620,1.687,2547.1,2546.5,0.7755]
[1750035192842,0.196,2546.9,2546.6,0.0392646]
[1750035193933,0.196,2546.9,2546.6,4.93723219]
[1750035194103,0.196,2546.9,2546.7,0.57127322]
[1750035194750,0.196,2547.0,2546.8,0.83606293]
[1750035194909,0.196,2547.0,2546.9,0.03926052]
[1750035195263,0.196,2547.2,2546.8,5.73402651]
[1750035195425,0.196,2547.2,2546.8,5.73402711]
[1750035195607,0.196,2547.2,2546.9,0.65013003]
[1750035196320,0.196,2547.2,2546.8,0.7968]
[1750035199457,40.0,2547.8,2547.2,0.79]
[1750035199610,30.0,2547.8,2547.2,0.79]
[1750035200123,1.686,2547.9,2547.2,0.79]
[1750035200124,40.0,2547.6,2547.2,0.79]
[1750035200326,30.0,2547.6,2547.2,0.79]
[1750035200745,30.0,2547.6,2546.9,10.79]
[1750035201072,30.0,2547.6,2547.0,1.7246]
[1750035201365,0.6632,2547.7,2546.9,10.79]
[1750035201366,40.0,2547.8,2547.2,0.783]
[1750035201511,30.0,2547.8,2547.2,0.783]
[1750035202653,0.6632,2547.7,2546.9,10.783]
[1750035202863,30.0,2547.6,2546.9,10.783]
[1750035203720,30.0,2547.6,2547.2,0.783]
[1750035203922,1.686,2547.9,2547.2,0.783]
[1750035203923,30.0,2547.9,2547.3,0.56809676]
[1750035204113,6.454,2547.9,2547.3,5.46606435]
[1750035204729,1.686,2548.0,2547.5,0.7624]
[1750035205326,30.0,2548.0,2547.5,0.7624]
[1750035208376,6.454,2548.0,2547.5,0.7624]
[1750035208757,2.3492,2548.2,2547.5,0.7624]
[1750035209100,6.454,2548.1,2547.5,0.7624]
[1750035209243,0.196,2547.9,2547.5,0.7624]
[1750035209559,0.196,2547.9,2547.5,0.80164906]
[1750035209939,0.196,2547.9,2547.5,0.7624]
[1750035211652,0.196,2547.9,2547.6,0.03924906]
[1750035211844,0.196,2547.9,2547.5,5.66036759]
[1750035214342,0.196,2547.9,2547.5,0.7624]
[1750035214542,30.6632,2547.8,2547.1,10.7799]
[1750035214760,0.196,2547.6,2547.1,0.9759]
[1750035214955,10.196,2547.6,2547.1,0.9759]
[1750035215145,30.0,2547.7,2547.1,0.7799]
[1750035215362,0.196,2547.4,2547.1,0.7799]
[1750035216459,0.196,2547.4,2546.9,0.9753]
[1750035220738,30.0,2547.3,2546.9,0.9753]
[1750035227100,7.1152,2547.5,2546.9,0.7793]
[1750035227101,0.196,2547.2,2546.9,0.7793]
[1750035228692,40.55,2547.3,2546.7,0.7896]
[1750035228900,0.196,2546.9,2546.7,0.7896]
[1750035229859,0.196,2546.9,2546.7,5.68756759]
[1750035230065,0.196,2547.1,2546.8,4.89796759]
[1750035236701,0.196,2547.3,2546.9,0.7555]
[1750035240617,30.0,2547.2,2546.9,0.7555]
[1750035242624,7.1142,2547.5,2546.5,0.9971]
[1750035242625,0.196,2547.0,2546.5,0.9971]
[1750035242829,40.0,2546.9,2546.0,8.86754065]
[1750035243028,0.196,2546.6,2546.2,0.9971]
[1750035243225,30.0,2546.7,2546.2,0.8011]
[1750035243427,0.196,2546.5,2546.2,0.8011]
[1750035244114,0.55,2546.6,2546.0,4.72007306]
[1750035244316,0.6632,2546.4,2546.0,0.0708644]
[1750035244519,0.196,2546.1,2546.0,0.0708644]
[1750035245833,0.84839413,2546.6,2546.1,0.755]
[1750035246034,0.196,2546.6,2546.5,4.89796759]
[1750035246210,0.196,2546.6,2546.5,5.65296759]
[1750035246409,0.196,2546.6,2546.5,0.755]
[1750035246618,40.0,2547.0,2546.5,5.65296759]
[1750035246790,0.196,2546.8,2546.5,5.65296759]
[1750035247313,0.196,2546.8,2546.5,0.755]
[1750035251194,0.196,2546.8,2546.5,1.33989676]
[1750035255651,0.6632,2547.2,2546.3,0.7734]
[1750035255652,0.55,2547.0,2546.3,0.7734]
[1750035255945,0.196,2546.6,2546.3,0.7734]
[1750035256457,0.196,2546.6,2546.3,5.67136759]
[1750035257423,0.196,2546.6,2546.3,0.7734]
[1750035257627,0.196,2546.6,2546.3,1.55460748]
[1750035257824,0.196,2546.6,2546.3,1.51534]
[1750035258046,0.196,2546.6,2546.3,1.55460749]
[1750035258833,0.196,2546.6,2546.3,1.51534]
[1750035260437,10.84839413,2547.1,2546.5,0.8135]
[1750035260642,0.196,2547.0,2546.6,4.89796759]
[1750035260838,0.196,2547.0,2546.8,4.89796759]
[1750035261042,0.196,2547.0,2546.9,0.7601]
[1750035263039,0.55,2547.6,2546.9,0.7601]
[1750035263273,0.196,2547.3,2547.0,4.89796759]
[1750035264092,10.55,2547.6,2547.0,4.89796759]
[1750035264093,0.196,2547.5,2547.1,0.03925887]
[1750035264381,1.04439413,2547.5,2547.0,5.09396759]
[1750035264677,0.196,2547.5,2547.1,0.6246627]
[1750035266279,0.196,2547.5,2547.1,0.62466271]
[1750035266764,0.196,2547.5,2547.0,5.09396759]
[1750035267077,0.196,2547.5,2547.0,0.196]
[1750035274607,10.0,2547.7,2546.9,0.7601]
[1750035274608,0.6632,2547.6,2546.9,0.7601]
[1750035274809,0.196,2547.1,2546.7,0.196]
[1750035281904,0.196,2547.1,2546.6,5.65146759]
[1750035281905,0.6632,2547.2,2546.6,0.7535]
[1750035282107,0.196,2547.0,2546.6,0.7535]
[1750035282821,0.196,2547.0,2546.6,0.79276325]
[1750035284899,0.196,2547.0,2546.6,0.7535]
[1750035285822,0.196,2547.0,2546.6,0.79276324]
[1750035286021,0.196,2547.0,2546.6,0.7535]
[1750035287106,0.196,2547.0,2546.2,10.0]
[1750035287107,30.0,2546.8,2546.1,4.89796759]
[1750035287433,1.04449119,2546.7,2546.2,0.196]
[1750035287636,0.196,2546.7,2546.2,0.196]
[1750035288148,0.196,2546.7,2546.3,4.89796759]
[1750035288353,0.196,2546.7,2546.4,0.7519]
[1750035289217,0.196,2546.7,2546.0,0.0708644]
[1750035289218,30.0,2546.4,2546.0,0.0708644]
[1750035289417,0.84849119,2546.3,2546.0,0.0708644]
[1750035289650,30.0,2546.5,2546.0,0.0708644]
[1750035289819,40.0,2546.3,2546.0,0.0708644]
[1750035290020,30.0,2546.5,2546.0,0.0708644]
[1750035290219,40.0,2546.3,2546.0,0.0708644]
[1750035290421,30.0,2546.5,2546.0,0.0708644]
[1750035290622,0.84863212,2546.4,2546.0,0.0708644]
[1750035290817,30.0,2546.5,2546.0,0.0708644]
[1750035291133,0.84863212,2546.4,2546.0,0.0708644]
[1750035291360,30.0,2546.5,2546.0,0.0708644]
[1750035291526,0.84863212,2546.4,2546.0,0.0708644]
[1750035291720,30.0,2546.5,2546.0,0.0708644]
[1750035291932,0.84863212,2546.4,2546.0,0.0708644]
[1750035292138,30.0,2546.5,2546.0,0.0708644]
[1750035292655,0.84778366,2546.4,2546.0,0.0708644]
[1750035292959,30.0,2546.5,2546.0,0.0708644]
[1750035293140,9.73116892,2546.6,2546.0,0.0708644]
[1750035293347,30.0,2546.5,2546.0,0.0708644]
[1750035293545,9.73116892,2546.6,2546.0,0.0708644]
[1750035293749,30.0,2546.5,2546.0,0.0708644]
[1750035296838,6.447,2546.5,2546.1,5.69796759]
[1750035297935,0.6632,2546.8,2546.1,5.69796759]
[1750035298149,30.0,2546.7,2546.1,5.69796759]
[1750035299293,0.196,2546.5,2546.1,0.996]
[1750035299449,30.0,2546.4,2546.0,0.0708644]
[1750035299652,0.196,2546.3,2546.0,0.0708644]
[1750035300587,30.0,2546.3,2546.0,0.0708644]
[1750035302370,7.1102,2546.4,2546.0,0.0708644]
[1750035302371,40.0,2546.1,2546.0,0.0708644]
[1750035302569,30.0,2546.1,2546.0,0.0708644]
[1750035303055,50.1883486,2546.1,2546.0,0.0708644]
[1750035303262,55.08631619,2546.1,2546.0,0.0708644]
[1750035303911,11.2132,2546.0,2544.9,0.8192]
[1750035304117,0.196,2545.1,2544.9,0.8192]
[1750035307296,0.196,2545.1,2544.8,0.196]
[1750035308513,0.196,2545.1,2545.0,0.7909]
[1750035308672,0.196,2545.3,2545.0,0.7909]
[1750035308866,0.196,2545.5,2545.1,4.93725459]
[1750035309490,0.196,2545.5,2545.1,0.039287]
[1750035309691,0.196,2545.1,2545.0,0.7909]
[1750035312666,6.448,2545.6,2545.0,5.68886759]
[1750035312885,0.196,2545.4,2545.0,5.88486759]
[1750035313205,30.6632,2545.3,2544.6,0.8284]
[1750035313403,0.196,2545.1,2544.7,0.196]
[1750035314926,0.196,2545.1,2544.7,0.23529194]
[1750035315390,0.196,2545.1,2544.7,0.196]
[1750035315971,0.196,2545.1,2544.7,0.23529195]
[1750035316166,0.196,2545.1,2544.9,4.89796759]
[1750035316386,0.196,2545.3,2544.9,4.93725953]
[1750035319827,0.84676105,2545.7,2545.1,4.89796759]
[1750035320127,0.196,2545.4,2545.1,4.89796759]
[1750035320431,0.196,2545.4,2545.0,1.02618782]
[1750035320633,0.196,2545.4,2545.0,0.9869]
[1750035329762,30.0,2545.3,2544.7,0.7519]
[1750035329954,0.84676105,2545.2,2544.8,0.196]
[1750035330149,30.0,2545.2,2544.8,0.196]
[1750035332371,0.85497534,2545.1,2544.8,0.196]
[1750035332549,30.0,2545.2,2544.8,0.196]
[1750035332755,0.85497534,2545.1,2544.8,0.196]
[1750035332954,0.196,2545.3,2544.8,0.196]
[1750035332955,1.05097534,2545.3,2544.8,0.196]
[1750035333151,30.0,2545.2,2544.8,0.196]
[1750035333371,0.85497534,2545.1,2544.8,0.196]
[1750035333570,30.0,2545.2,2544.8,0.196]
[1750035333770,0.85497534,2545.1,2544.8,0.196]
[1750035333986,30.0,2545.2,2544.8,0.196]
[1750035334188,0.85497534,2545.1,2544.8,0.196]
[1750035334343,0.85497534,2545.2,2544.8,0.196]
[1750035335751,1.05097534,2545.3,2545.0,0.7512]
[1750035336446,1.71417534,2545.3,2544.8,0.196]
[1750035336970,0.85497534,2545.2,2544.8,0.196]
[1750035340797,0.85619785,2545.2,2544.8,0.196]